fUSD/lending_fUSD_20240818
["ID","MTS","AMOUNT","RATE_DAILY","PERIOD"]
[335240967,1724019043161,-229.123367,0.00010872,2]
[335240968,1724019043170,-151.0,0.00010872,2]
[335240969,1724019043180,-151.0,0.00010872,2]
[335240970,1724019043189,-151.0,0.00010872,2]
[335240971,1724019043199,-198.170801,0.00010872,2]
[335240972,1724019043208,-267.880009,0.00010872,2]
[335240973,1724019043217,-267.880009,0.00010872,2]
[335240974,1724019043227,-151.0,0.00010872,2]
[335240975,1724019043236,-589.725077,0.00010872,2]
[335240976,1724019043246,-589.725077,0.00010872,2]
[335240977,1724019043255,-190.636864,0.00010872,2]
[335240978,1724019043264,-190.636864,0.00010872,2]
[335240979,1724019043273,-202.439194,0.00010872,2]
[335240980,1724019043283,-235500.08890446,0.00010872,2]
[335240981,1724019043292,-259.27418336,0.00010873,2]
[335240982,1724019043301,-29932.21917103,0.00010874,2]
[335240983,1724019043310,-6191.10521867,0.00010874,2]
[335240984,1724019043466,-815.0,0.00010874,2]
[335240985,1724019043514,-306.42367944,0.00010874,2]
[335240986,1724019043532,-166.91553416,0.00010009,2]
[335240987,1724019043542,-488.51640584,0.00010874,2]
[335240988,1724019043553,-310.24010705,0.00010874,2]
[335240989,1724019044047,-2677.50344484,0.00010874,2]
[335240990,1724019044058,-552.62070963,0.00010874,2]
[335240991,1724019044161,-305.51506859,9.999e-05,2]
[335240992,1724019044171,-155.0,0.00010009,2]
[335240993,1724019044180,-600.74422133,0.00010097,2]
[335240994,1724019044190,-33.47274864,0.00010097,2]
[335240995,1724019044202,-323.98027521,0.00010097,2]
[335240996,1724019044212,-1076.0,0.0001069,2]
[335240997,1724019044222,-18590.80960556,0.00010874,2]
[335240998,1724019044231,-151.0,0.00010874,2]
[335240999,1724019044240,-248.93516,0.00010874,2]
[335241000,1724019044249,-461.011902,0.00010874,2]
[335241001,1724019044258,-461.011902,0.00010874,2]
[335241002,1724019044268,-151.0,0.00010874,2]
[335241003,1724019044278,-151.0,0.00010874,2]
[335241004,1724019044287,-151.0,0.00010874,2]
[335241005,1724019044296,-151.0,0.00010874,2]
[335241006,1724019044306,-151.0,0.00010874,2]
[335241007,1724019044315,-198.170801,0.00010874,2]
[335241008,1724019044325,-267.880009,0.00010874,2]
[335241009,1724019044334,-267.880009,0.00010874,2]
[335241010,1724019044345,-589.725077,0.00010874,2]
[335241011,1724019044355,-589.725076,0.00010874,2]
[335241012,1724019044365,-190.636864,0.00010874,2]
[335241013,1724019044374,-190.636868,0.00010874,2]
[335241014,1724019044383,-8528.6047152,0.00010874,2]
[335241015,1724019044395,-961.27203814,0.00010874,2]
[335241016,1724019044411,-29856.39000407,0.00010874,2]
[335241017,1724019044423,-1399.85886565,0.00010874,2]
[335241018,1724019044499,-993.56644484,0.00010161,2]
[335241019,1724019044513,-1299.650178,0.00010161,2]
[335241020,1724019044525,-616.30807887,0.00010161,2]
[335241028,1724019045789,-590.329,0.00010161,2]
[335241029,1724019045800,-5864.12629829,0.00010161,2]
[335241030,1724019045810,-500.69624209,0.00010566,2]
[335241031,1724019045819,-527.88253725,0.00010874,2]
[335241032,1724019046022,-915.14996144,0.00010852,2]
[335241033,1724019046032,-2522.56251173,0.00010874,2]
[335241034,1724019046045,-520.38152683,0.00010874,2]
[335241038,1724019085856,150.0,9.868e-05,2]
[335241039,1724019085881,32.22,9.868e-05,2]
[335241040,1724019132081,600.0,9.856e-05,2]
[335241041,1724019136045,150.0,8.8e-05,2]
[335241042,1724019136066,150.0,8.8e-05,2]
[335241043,1724019136088,150.0,8.8e-05,2]
[335241044,1724019136109,50.0,8.8e-05,2]
[335241045,1724019136536,100.0,8.943e-05,2]
[335241046,1724019136557,150.0,8.943e-05,2]
[335241047,1724019136578,150.0,8.943e-05,2]
[335241048,1724019136600,100.0,8.943e-05,2]
[335241049,1724019248986,150.0,9.834e-05,2]
[335241050,1724019249009,100.0,9.834e-05,2]
[335241051,1724019365731,230.68526862,8.219e-05,2]
[335241052,1724019365757,435.26473138,8.219e-05,2]
[335241053,1724019444770,150.0,8.219e-05,2]
[335241054,1724019444792,150.0,8.219e-05,2]
[335241055,1724019444812,112.17913044,8.219e-05,2]
[335241056,1724019465317,150.0,9.76e-05,2]
[335241057,1724019465338,150.0,9.76e-05,2]
[335241058,1724019465358,150.0,9.76e-05,2]
[335241059,1724019465378,1.07,9.76e-05,2]
[335241060,1724019489077,150.0,9.899e-05,2]
[335241061,1724019489097,114.6397361,9.899e-05,2]
[335241062,1724019495893,150.0,9.739e-05,2]
[335241063,1724019495916,61.55,9.739e-05,2]
[335241064,1724019511199,150.0,9.771e-05,2]
[335241065,1724019511223,150.0,9.771e-05,2]
[335241066,1724019511251,150.0,9.771e-05,2]
[335241067,1724019511274,107.44,9.771e-05,2]
[335241068,1724019523279,152.98,7.001e-05,2]
[335241069,1724019539285,150.0,9.72e-05,2]
[335241070,1724019539313,32.24,9.72e-05,2]
[335241071,1724019547779,150.0,9.899e-05,2]
[335241072,1724019547801,91.12766198,9.899e-05,2]
[335241073,1724019557062,155.0,9.899e-05,2]
[335241074,1724019572058,150.0,9.899e-05,2]
[335241075,1724019572080,5.0,9.899e-05,2]
[335241076,1724019590396,150.0,9.899e-05,2]
[335241077,1724019590420,102.88535117,9.899e-05,2]
[335241078,1724019612858,150.0,9.899e-05,2]
[335241079,1724019612879,150.0,9.899e-05,2]
[335241080,1724019612901,150.0,9.899e-05,2]
[335241081,1724019612922,150.0,9.899e-05,2]
[335241082,1724019612944,150.0,9.899e-05,2]
[335241083,1724019612965,150.0,9.899e-05,2]
[335241084,1724019612986,150.0,9.899e-05,2]
[335241085,1724019613006,150.0,9.899e-05,2]
[335241086,1724019613026,150.0,9.899e-05,2]
[335241087,1724019613047,150.0,9.899e-05,2]
[335241088,1724019613068,217.30812031,9.899e-05,2]
[335241089,1724019613092,2221.32789042,9.899e-05,2]
[335241090,1724019656586,1215.58,9.757e-05,2]
[335241091,1724019736296,150.0,9.549e-05,2]
[335241092,1724019736326,350.0,9.549e-05,2]
[335241093,1724019740549,500.0,9.222e-05,2]
[335241094,1724019743560,160.59179104,9.899e-05,2]
[335241095,1724019749060,393.12863758,8.795e-05,2]
[335241096,1724019757359,250.0,9.789e-05,2]
[335241097,1724019832074,632.65,8.219e-05,2]
[335241098,1724019925420,155.23,8.219e-05,2]
[335241099,1724019936319,1238.11555453,9.5e-05,2]
[335241101,1724019976945,275.24648864,9.899e-05,2]
[335241102,1724019976969,33.90540771,9.899e-05,2]
[335241103,1724019993045,150.0,9.899e-05,2]
[335241104,1724019993071,5.0,9.899e-05,2]
[335241105,1724019997810,554.04,9.772e-05,2]
[335241106,1724020008847,225.53,9.769e-05,2]
[335241117,1724020046401,150.0,9.899e-05,2]
[335241118,1724020046423,150.0,9.899e-05,2]
[335241119,1724020046444,140.08291615,9.899e-05,2]
[335241120,1724020049534,9.91708385,9.614e-05,2]
[335241121,1724020049746,150.0,9.614e-05,2]
[335241122,1724020049768,150.0,9.614e-05,2]
[335241123,1724020049789,150.0,9.614e-05,2]
[335241124,1724020049810,40.08291615,9.614e-05,2]
[335241127,1724020086359,109.91708385,9.899e-05,2]
[335241128,1724020086382,237.77907096,9.899e-05,2]
[335241129,1724020101812,303.73213513,9.899e-05,2]
[335241130,1724020103087,252.44,9.757e-05,2]
[335241131,1724020113168,155.0,9.899e-05,2]
[335241132,1724020147189,1346.67,9.768e-05,2]
[335241134,1724020160120,-369.0,9.908e-05,2]
[335241136,1724020160156,-1101.0,9.909e-05,2]
[335241138,1724020160193,-2018.8556226,9.909e-05,2]
[335241139,1724020160234,-104.36789706,9.909e-05,2]
[335241142,1724020160271,-300.0,9.979e-05,2]
[335241144,1724020160318,-389.00979187,9.98e-05,2]
[335241147,1724020185066,-3574.50028883,9.98e-05,2]
[335241149,1724020185137,-505.57098353,9.98e-05,2]
[335241151,1724020185249,-3574.50028883,9.98e-05,2]
[335241152,1724020210077,-2961.14075425,9.98e-05,2]
[335241157,1724020231696,-761.55830503,9.98e-05,2]
[335241158,1724020231706,-155.0,9.988e-05,2]
[335241159,1724020231715,-2083.44169497,9.988e-05,2]
[335241160,1724020231727,-715.33243787,9.988e-05,2]
[335241161,1724020231736,-550.0,0.0001,2]
[335241162,1724020231745,-225.59102544,0.0001,2]
[335241163,1724020231760,-5479.56662684,0.0001,2]
[335241164,1724020231769,-2390.39520796,0.0001,2]
[335241165,1724020231781,-697.75491259,0.0001,2]
[335241166,1724020231790,-151.99077719,0.00010009,2]
[335241167,1724020231874,-3380.9554794,0.00010009,2]
[335241168,1724020231884,-1725.0,0.00010009,2]
[335241169,1724020231894,-298.91848984,0.00010026,2]
[335241170,1724020231906,-2821.68408406,0.00010097,2]
[335241171,1724020231919,-420.98804803,0.00010097,2]
[335241180,1724020237650,-363.97062925,0.00010009,2]
[335241181,1724020237734,-955.27057878,0.00010009,2]
[335241182,1724020237746,-69.69737266,0.00010009,2]
[335241183,1724020237755,-160.59195442,0.00010097,2]
[335241184,1724020237764,-155.0,0.00010097,2]
[335241185,1724020237773,-29.45999155,0.00010164,2]
[335241237,1724020238454,-470.54000845,0.00010164,2]
[335241239,1724020238465,-500.0,0.00010216,2]
[335241241,1724020238474,-632.65,0.00010466,2]
[335241243,1724020238484,-687.41722855,0.00010505,2]
[335241245,1724020238493,-687.41722855,0.00010505,2]
[335241247,1724020238502,-155.0,0.00010566,2]
[335241249,1724020238511,-880.11211499,0.00010566,2]
[335241251,1724020238524,-1231.2807963,0.00010566,2]
[335241253,1724020238533,-999.42172375,0.00010613,2]
[335241255,1724020238542,-517.22803235,0.00010684,2]
[335241257,1724020238552,-500.0,0.00010684,2]
[335241259,1724020238561,-500.0,0.00010684,2]
[335241261,1724020238571,-155.0,0.00010699,2]
[335241263,1724020238583,-3027.5296,0.00010774,2]
[335241265,1724020238592,-260.0746,0.00010774,2]
[335241267,1724020238601,-2621.9688,0.00010774,2]
[335241268,1724020238611,-927.4964476,0.00010776,2]
[335241393,1724020239823,-5562.6316524,0.00010776,2]
[335241395,1724020239833,-174.44529527,0.00010777,2]
[335241397,1724020239843,-1387.378,0.00010779,2]
[335241398,1724020239852,-2553.788,0.00010779,2]
[335241400,1724020239861,-1169.0,0.00010779,2]
[335241402,1724020239871,-764.0,0.00010779,2]
[335241404,1724020239880,-1543.0,0.00010779,2]
[335241406,1724020239889,-1258.0,0.00010779,2]
[335241408,1724020239899,-1923.0,0.00010779,2]
[335241410,1724020239910,-622.0,0.00010779,2]
[335241412,1724020239919,-837.75097971,0.00010799,2]
[335241414,1724020239928,-506.95118279,0.000108,3]
[335241416,1724020239938,-500.0,0.000108,4]
[335241418,1724020239947,-5694.3,0.00010828,2]
[335241419,1724020239956,-174.44529526,0.00010839,2]
[335241420,1724020239966,-301.83315869,0.00010839,2]
[335241421,1724020239976,-500.0,0.00010845,2]
[335241422,1724020239985,-500.0,0.00010845,2]
[335241423,1724020239994,-340.45284531,0.00010845,2]
[335241424,1724020240003,-301.83315869,0.00010849,2]
[335241425,1724020240013,-155.1051597,0.00010852,2]
[335241426,1724020240023,-301.83315869,0.00010859,2]
[335241427,1724020240032,-263.62811176,0.00010861,2]
[335241428,1724020240042,-377.35855902,0.00010862,2]
[335241429,1724020240051,-155.318472,0.00010862,2]
[335241431,1724020240061,-603.72875613,0.00010862,2]
[335241450,1724020240253,-155.0,0.00010862,2]
[335241452,1724020240263,-264.6397361,0.00010862,2]
[335241454,1724020240272,-270.73245212,0.00010862,2]
[335241456,1724020240282,-18672.7153358,0.00010867,2]
[335241458,1724020240291,-5837.9785219,0.00010867,2]
[335241460,1724020240301,-301.83315869,0.00010869,2]
[335241462,1724020240310,-1518.02409611,0.00010873,2]
[335241464,1724020240320,-500.0,0.00010873,2]
[335241466,1724020240329,-500.0,0.00010873,2]
[335241468,1724020240339,-191.7947919,0.00010873,2]
[335241470,1724020240351,-308.2052081,0.00010873,2]
[335241472,1724020240361,-494.25635185,0.00010873,2]
[335241474,1724020240370,-500.0,0.00010873,2]
[335241476,1724020240379,-500.0,0.00010873,2]
[335241478,1724020240388,-150.0,0.00010873,2]
[335241480,1724020240398,-1321.94635953,0.00010874,2]
[335241482,1724020240414,-678.05364047,0.00010874,2]
[335241484,1724020240424,-200.0,0.00010874,2]
[335241486,1724020240433,-12245.41020176,0.00010874,2]
[335241489,1724020240445,-656.60656736,0.00010874,2]
[335241491,1724020240456,-565.48,0.00010874,2]
[335241660,1724020243480,-1383.95848256,0.00010874,2]
[335241661,1724020243492,-293.80853246,0.00010874,2]
[335241662,1724020243502,-1728.53770147,0.00010874,2]
[335241663,1724020243513,-8287.78191009,0.00010874,2]
[335241664,1724020243528,-378.703701,0.00010874,2]
[335241665,1724020243539,-4143.31,0.00010874,2]
[335241666,1724020243557,-289.0,0.00010757,2]
[335241667,1724020243567,-154.4506406,0.00010874,2]
[335241668,1724020243579,-9791.13543109,0.00010874,2]
[335241669,1724020243591,-547.5801894,0.00010874,2]
[335241670,1724020243602,-822.39069926,0.00010874,2]
[335241671,1724020243613,-927.77,0.00010874,2]
[335241677,1724020245812,-1408.0706955,0.00010874,2]
[335241678,1724020245824,-361.14764114,0.00010874,2]
[335241679,1724020245835,-1619.0,0.00010874,2]
[335241680,1724020245846,-900.0,0.00010874,2]
[335241681,1724020245900,-3151.26942458,0.00010874,2]
[335241682,1724020290063,150.0,9.9e-05,3]
[335241683,1724020290087,50.0,9.9e-05,3]
[335241684,1724020296302,609.92,8.219e-05,2]
[335241685,1724020335611,500.0,9.737e-05,2]
[335241687,1724020456779,263.85,9.8e-05,2]
[335241688,1724020487435,168.36,7.044e-05,2]
[335241689,1724020523512,350.15,9.777e-05,2]
[335241690,1724020564795,156.45,9.762e-05,2]
[335241691,1724020584753,556.76,9.758e-05,2]
[335241692,1724020621854,333.30865963,9.899e-05,2]
[335241693,1724020636439,900.0,9.173e-05,2]
[335241694,1724020663243,1802.49,9.845e-05,2]
[335241699,1724020734869,150.0,9.759e-05,2]
[335241700,1724020734891,100.0,9.759e-05,2]
[335241701,1724020761224,597.67,8.219e-05,2]
[335241702,1724020931279,150.0,9.764e-05,2]
[335241703,1724020931302,113.85,9.764e-05,2]
[335241704,1724020954634,150.0,7.003e-05,2]
[335241705,1724020954656,22.32,7.003e-05,2]
[335241711,1724021043756,554.59,9.694e-05,2]
[335241713,1724021053309,173.63,9.69e-05,2]
[335241714,1724021062719,150.0,8.488e-05,2]
[335241715,1724021062741,150.0,8.488e-05,2]
[335241716,1724021062763,150.0,8.488e-05,2]
[335241717,1724021062785,150.0,8.488e-05,2]
[335241718,1724021062808,150.0,8.488e-05,2]
[335241719,1724021062830,150.0,8.488e-05,2]
[335241720,1724021062855,100.0,8.488e-05,2]
[335241725,1724021209709,150.0,9.899e-05,2]
[335241726,1724021209730,130.40852034,9.899e-05,2]
[335241730,1724021232526,200.0,9.9e-05,3]
[335241731,1724021236482,500.0,9.06e-05,2]
[335241732,1724021244464,150.0,9.899e-05,2]
[335241733,1724021244500,79.87881805,9.899e-05,2]
[335241734,1724021323184,150.0,9.899e-05,2]
[335241735,1724021323204,150.0,9.899e-05,2]
[335241736,1724021323224,65.64696313,9.899e-05,2]
[335241737,1724021334144,150.0,8.219e-05,2]
[335241738,1724021334165,150.0,8.219e-05,2]
[335241739,1724021334185,150.0,8.219e-05,2]
[335241740,1724021334207,135.11,8.219e-05,2]
[335241751,1724021431858,-577.17401886,9.909e-05,2]
[335241752,1724021431870,-277.82598114,9.909e-05,2]
[335241753,1724021431886,-93.86656376,9.962e-05,2]
[335241754,1724021431898,-61.13343624,9.962e-05,2]
[335241755,1724021431907,-334.61678929,9.988e-05,2]
[335241756,1724021432007,-337.835,9.988e-05,2]
[335241757,1724021432020,-595.5625,9.988e-05,2]
[335241758,1724021432031,-2363.32361815,9.988e-05,2]
[335241759,1724021432042,-851.58734451,9.988e-05,2]
[335241761,1724021432226,-935.99632994,9.988e-05,2]
[335241763,1724021432244,-5149.76122802,9.988e-05,2]
[335241765,1724021432255,-707.07731665,9.988e-05,2]
[335241768,1724021432267,-629.99914214,9.988e-05,2]
[335241770,1724021432279,-3585.58594072,9.988e-05,2]
[335241772,1724021432288,-2408.31995728,9.988e-05,2]
[335241774,1724021432298,-300.0,9.998e-05,2]
[335241776,1724021432307,-300.0,9.998e-05,2]
[335241778,1724021432316,-932.17390329,9.999e-05,2]
[335241780,1724021432326,-550.0,0.0001,2]
[335241782,1724021432335,-328.2488375,0.0001,2]
[335241783,1724021432345,-2284.0691024,0.0001,2]
[335241786,1724021432354,-500.0,0.0001,3]
[335241787,1724021432364,-155.11525549,0.0001,2]
[335241789,1724021432375,-155.0,0.00010009,2]
[335241791,1724021432384,-155.0,0.00010026,2]
[335241792,1724021432394,-155.0,0.00010026,2]
[335241793,1724021432403,-211.1434253,0.00010026,2]
[335241795,1724021432413,-255.25252606,0.00010047,2]
[335241796,1724021432425,-44.74747394,0.00010047,2]
[335241797,1724021432434,-150.0,0.00010082,2]
[335241798,1724021432444,-283.76013979,0.000101,3]
[335241799,1724021432457,-416.23986021,0.000101,3]
[335241800,1724021432466,-500.0,0.00010164,2]
[335241801,1724021432475,-1129.82013979,0.000102,5]
[335241802,1724021432490,-921.66411705,0.000102,5]
[335241803,1724021432502,-819.28,0.000102,5]
[335241823,1724021438012,-6202.52916118,9.988e-05,2]
[335241824,1724021438024,-1710.20261349,9.988e-05,2]
[335241825,1724021438033,-155.0,0.00010009,2]
[335241826,1724021438042,-1388.93858069,0.00010097,2]
[335241827,1724021438052,-1740.23574316,0.000102,5]
[335241828,1724021438061,-1000.0,0.000102,3]
[335241829,1724021438070,-1445.88920626,0.000102,2]
[335241830,1724021438121,-300.45999998,0.000102,2]
[335241832,1724021438366,-1275.15327242,0.000102,2]
[335241837,1724021440072,-155.0,9.999e-05,2]
[335241838,1724021440082,-6271.82752134,0.000102,2]
[335241839,1724021440092,-1200.0,0.000103,3]
[335241840,1724021440102,-200.0,0.000104,3]
[335241841,1724021440112,-585.11,0.00010458,2]
[335241842,1724021440121,-875.58,0.00010463,2]
[335241843,1724021440133,-962.88244665,0.00010471,2]
[335241844,1724021440142,-200.0,0.000105,3]
[335241845,1724021440152,-200.0,0.000106,3]
[335241846,1724021440161,-182.7281,0.0001069,2]
[335241847,1724021440170,-6208.67509495,0.0001069,2]
[335241848,1724021440180,-20899.61870835,0.000107,2]
[335241849,1724021440191,-331.06270866,0.000107,2]
[335241850,1724021440206,-742.60480599,0.000107,2]
[335241851,1724021440216,-200.0,0.000107,3]
[335241852,1724021440225,-3604.1128,0.00010762,2]
[335241853,1724021440234,-1543.0,0.00010767,2]
[335241854,1724021440243,-622.0,0.00010767,2]
[335241855,1724021440253,-1258.0,0.00010767,2]
[335241856,1724021440262,-1923.0,0.00010767,2]
[335241857,1724021440272,-1137.0,0.00010767,2]
[335241858,1724021440281,-154.598,0.00010767,2]
[335241859,1724021440291,-1169.0,0.00010767,2]
[335241860,1724021440302,-764.0,0.00010767,2]
[335241861,1724021440311,-5113.295,0.00010767,2]
[335241862,1724021440321,-150.0,0.00010767,2]
[335241863,1724021440330,-334.141,0.00010767,2]
[335241864,1724021440340,-500.0,0.0001077,2]
[335241865,1724021440349,-1403.4508,0.00010774,2]
[335241866,1724021440358,-10209.6884,0.00010774,2]
[335241867,1724021440367,-174.44529526,0.00010777,2]
[335241868,1724021440378,-27779.02142484,0.0001079,2]
[335241869,1724021440418,-11509.73957567,0.0001079,2]
[335241870,1724021440429,-14195.02904363,0.0001079,2]
[335241871,1724021440445,-23592.49876704,0.0001079,2]
[335241872,1724021440454,-700.0,0.000108,3]
[335241873,1724021440463,-696.97513234,0.00010852,2]
[335241874,1724021440473,-270.2800265,0.00010852,2]
[335241875,1724021440483,-155.0,0.00010852,2]
[335241876,1724021440492,-214.61445423,0.00010861,2]
[335241877,1724021440502,-218.91005949,0.00010861,2]
[335241878,1724021440511,-632.76983512,0.00010862,2]
[335241879,1724021440520,-1564.2677246,0.00010867,2]
[335241880,1724021440530,-500.0,0.00010873,2]
[335241881,1724021440539,-500.0,0.00010873,2]
[335241882,1724021440548,-500.0,0.00010873,2]
[335241883,1724021440557,-500.0,0.00010873,2]
[335241884,1724021440567,-500.0,0.00010873,2]
[335241885,1724021440576,-200.0,0.00010874,2]
[335241886,1724021440586,-104197.13941935,0.00010874,2]
[335241905,1724021444243,-250.32504935,9.962e-05,2]
[335241906,1724021444253,-301.83315876,0.00010776,2]
[335241907,1724021444262,-8012.97520043,0.00010874,2]
[335241909,1724021454516,150.0,7.205e-05,2]
[335241910,1724021454537,22.32,7.205e-05,2]
[335241911,1724021483665,150.0,9.9e-05,3]
[335241912,1724021483687,150.0,9.9e-05,3]
[335241913,1724021483717,100.0,9.9e-05,3]
[335241914,1724021543593,150.0,9.511e-05,2]
[335241915,1724021543614,150.0,9.511e-05,2]
[335241916,1724021543636,150.0,9.511e-05,2]
[335241917,1724021543657,100.0,9.511e-05,2]
[335241920,1724021640680,556.32,9.773e-05,2]
[335241922,1724021666247,150.0,9.899e-05,2]
[335241923,1724021666269,150.0,9.899e-05,2]
[335241924,1724021666290,150.0,9.899e-05,2]
[335241925,1724021666310,150.0,9.899e-05,2]
[335241926,1724021666334,150.0,9.899e-05,2]
[335241927,1724021666356,150.0,9.899e-05,2]
[335241928,1724021666376,150.0,9.899e-05,2]
[335241929,1724021666583,150.0,9.899e-05,2]
[335241930,1724021666606,150.0,9.899e-05,2]
[335241931,1724021666627,150.0,9.899e-05,2]
[335241932,1724021666648,150.0,9.899e-05,2]
[335241933,1724021666668,292.27881805,9.899e-05,2]
[335241934,1724021666692,3449.80849992,9.899e-05,2]
[335241935,1724021692800,211.58521204,9.899e-05,2]
[335241936,1724021697276,245.67867199,9.899e-05,2]
[335241937,1724021703785,723.63700054,9.899e-05,2]
[335241938,1724021711094,250.0,9.799e-05,2]
[335241939,1724021722985,155.0,9.899e-05,2]
[335241940,1724021727265,155.0,9.899e-05,2]
[335241941,1724021757007,236.67,9.8e-05,2]
[335241942,1724021801945,559.53,8.219e-05,2]
[335241944,1724021893286,962.88244665,9.899e-05,2]
[335241945,1724022116215,554.94,9.799e-05,2]
[335241946,1724022217196,176.51,9.793e-05,2]
[335241947,1724022278279,250.0,9.794e-05,2]
[335241949,1724022316938,531.55,8.219e-05,2]
[335241952,1724022403876,183.48,7.112e-05,2]
[335241953,1724022433584,150.0,9.9e-05,3]
[335241954,1724022433607,150.0,9.9e-05,3]
[335241955,1724022433630,100.0,9.9e-05,3]
[335241956,1724022473205,50.0,8.62e-05,2]
[335241957,1724022473237,250.0,8.62e-05,2]
[335241958,1724022473261,94.25222774,8.62e-05,2]
[335241959,1724022477383,1256.92584908,8.62e-05,2]
[335241981,1724022632116,-233.86697885,0.0001,2]
[335241982,1724022632126,-162.782967,0.0001,2]
[335241983,1724022632135,-571.43916896,0.0001,3]
[335241984,1724022632162,-228.56083104,0.0001,3]
[335241985,1724022632171,-723.63700054,0.00010009,2]
[335241986,1724022632180,-513.0,0.00010041,2]
[335241987,1724022632189,-210.77402829,0.00010097,2]
[335241988,1724022632199,-1200.0,0.000101,3]
[335241989,1724022632208,-500.0,0.00010164,2]
[335241990,1724022632217,-1600.0,0.000102,3]
[335241991,1724022632226,-2000.0,0.000103,3]
[335241992,1724022632235,-400.0,0.000104,3]
[335241993,1724022632244,-5403.79429818,0.00010448,2]
[335241994,1724022632253,-300.0,0.00010465,2]
[335241995,1724022632262,-531.55,0.00010466,2]
[335241996,1724022632271,-281.65,0.00010466,2]
[335241997,1724022632281,-400.0,0.000105,3]
[335241998,1724022632290,-400.0,0.000106,3]
[335241999,1724022632301,-2962.9956,0.0001069,2]
[335242000,1724022632311,-163.61598892,0.00010699,2]
[335242001,1724022632330,-155.0,0.00010699,2]
[335242002,1724022632339,-400.0,0.000107,3]
[335242003,1724022632348,-150.0,0.00010765,2]
[335242004,1724022632357,-150.0,0.00010767,2]
[335242005,1724022632368,-1254.0,0.00010767,2]
[335242006,1724022632378,-564.488,0.00010767,2]
[335242007,1724022632387,-1923.0,0.00010767,2]
[335242008,1724022632396,-622.0,0.00010767,2]
[335242009,1724022632407,-1137.0,0.00010767,2]
[335242010,1724022632416,-813.801,0.00010767,2]
[335242011,1724022632425,-764.0,0.00010767,2]
[335242012,1724022632434,-500.0,0.0001077,2]
[335242013,1724022632443,-304.66780577,0.00010777,2]
[335242014,1724022632453,-304.66780572,0.00010792,2]
[335242015,1724022632462,-155.0,0.00010799,2]
[335242016,1724022632471,-155.0,0.00010799,2]
[335242017,1724022632480,-400.0,0.000108,3]
[335242018,1724022632490,-304.66780572,0.00010808,2]
[335242019,1724022632500,-304.66780572,0.00010823,2]
[335242020,1724022632509,-304.66780572,0.00010839,2]
[335242021,1724022632518,-304.66780572,0.00010854,2]
[335242022,1724022632527,-2692.37704284,0.00010867,2]
[335242023,1724022632539,-323.74792596,0.00010867,2]
[335242024,1724022632549,-1545.10577207,0.00010867,2]
[335242025,1724022632563,-6577.56553854,0.00010867,2]
[335242026,1724022632578,-3279.20840939,0.00010867,2]
[335242027,1724022632587,-532.0428188,0.00010867,2]
[335242028,1724022632595,-304.66780572,0.00010869,2]
[335242029,1724022632605,-150.01,0.00010873,2]
[335242030,1724022632614,-1499.18992594,0.00010873,2]
[335242031,1724022632623,-29606.61026754,0.00010874,2]
[335242032,1724022632632,-1629.06500109,0.00010875,3]
[335242033,1724022632642,-1030.15064302,0.00010875,3]
[335242034,1724022632651,-38600.25317271,0.00010875,2]
[335242035,1724022632660,-14667.75716725,0.00010876,2]
[335242036,1724022632672,-6599.90554356,0.00010876,2]
[335242037,1724022632683,-3347.64236569,0.00010876,2]
[335242041,1724022638026,-7483.05776163,0.00010876,2]
[335242042,1724022638097,-4194.63053826,0.00010876,2]
[335242043,1724022638109,-2307.25979632,0.00010876,2]
[335242044,1724022638118,-462.97459314,0.00010876,2]
[335242045,1724022638127,-500.0,0.00010876,2]